bitfinex/quotes_SOLUSD_20240605
["timestamp","ask_amount","ask_price","bid_price","bid_amount"]
[1717601697068,0.1827698,174.64,174.63,134.8312]
[1717601700163,0.1827698,174.64,174.63,122.1187]
[1717601700944,0.1827698,174.64,174.63,126.3562]
[1717601701952,0.1827698,174.64,174.63,138.846]
[1717601702168,0.03575092,174.66,174.65,126.3555]
[1717601702373,0.03575092,174.66,174.65,183.8446]
[1717601702571,0.03575092,174.66,174.65,199.4086]
[1717601702958,5.092e-05,174.66,174.65,199.4086]
[1717601703160,9.733e-05,174.67,174.66,28.5592]
[1717601703355,9.733e-05,174.67,174.66,50.648]
[1717601703560,9.733e-05,174.67,174.66,115.818]
[1717601703756,0.4,174.74,174.73,122.1175]
[1717601705754,0.4,174.74,174.73,120.0]
[1717601705972,0.4,174.74,174.73,165.0]
[1717601707658,0.4,174.74,174.73,167.1175]
[1717601707987,7.49,174.74,174.73,165.0]
[1717601708199,7.49,174.74,174.71,122.1177]
[1717601708363,7.09,174.72,174.71,120.0]
[1717601708889,7.09,174.72,174.71,122.1177]
[1717601712164,7.09,174.72,174.71,120.0]
[1717601712962,0.4,174.74,174.71,122.1177]
[1717601713162,7.09,174.72,174.71,122.1177]
[1717601713381,7.09,174.72,174.71,120.0]
[1717601714498,7.09,174.72,174.71,122.1177]
[1717601715078,0.4,174.74,174.73,122.1175]
[1717601715378,0.4,174.74,174.73,126.3526]
[1717601716182,7.49,174.74,174.73,122.1175]
[1717601717355,0.4,174.74,174.73,122.1175]
[1717601717566,7.49,174.74,174.73,122.1175]
[1717601718277,0.4,174.74,174.73,122.1175]
[1717601722961,7.49,174.74,174.73,122.1175]
[1717601724285,0.4,174.74,174.73,122.1175]
[1717601724787,7.49,174.74,174.73,122.1175]
[1717601724994,0.4,174.74,174.73,122.1175]
[1717601725167,7.49,174.74,174.73,122.1175]
[1717601725370,7.49,174.74,174.73,120.0]
[1717601725991,7.49,174.74,174.73,122.1175]
[1717601728810,7.49,174.74,174.73,120.0]
[1717601728988,9.6074,174.74,174.71,120.0]
[1717601729290,7.09,174.72,174.71,120.0]
[1717601729893,0.4,174.74,174.71,122.1177]
[1717601730101,7.09,174.72,174.71,122.1177]
[1717601730272,0.4,174.74,174.71,120.0]
[1717601730471,0.4,174.74,174.73,120.0]
[1717601730672,7.49,174.74,174.73,120.0]
[1717601731474,0.4,174.74,174.73,122.1175]
[1717601739003,0.4,174.74,174.73,126.3526]
[1717601739587,0.4,174.74,174.73,122.1175]
[1717601740689,0.4,174.74,174.73,126.3526]
[1717601741308,0.4,174.74,174.73,132.4332]
[1717601741817,0.4,174.74,174.73,126.3526]
[1717601744794,0.4,174.74,174.73,132.6144]
[1717601745506,0.4,174.74,174.73,139.7044]
[1717601745709,0.4,174.74,174.73,132.7844]
[1717601746503,0.4,174.74,174.73,140.0444]
[1717601747720,0.4,174.74,174.73,132.9544]
[1717601747922,0.0661,174.8,174.79,122.1168]
[1717601748492,0.0661,174.8,174.79,126.3504]
[1717601748994,0.0661,174.8,174.79,122.1168]
[1717601749492,0.0661,174.8,174.79,126.3504]
[1717601749906,0.0661,174.8,174.79,132.9723]
[1717601750399,0.0661,174.8,174.79,132.8023]
[1717601750709,0.0661,174.8,174.79,126.3504]
[1717601751607,0.0661,174.8,174.79,133.1423]
[1717601752140,7.9066447,174.85,174.79,133.1423]
[1717601752141,0.8166447,174.85,174.83,122.1163]
[1717601752324,2.0,174.9,174.89,122.1156]
[1717601752704,2.0,174.9,174.89,132.7987]
[1717601752905,2.0,174.9,174.89,122.1156]
[1717601754309,2.0,174.9,174.89,103.58703434]
[1717601754614,0.3827698,174.95,174.93,2.1151]
[1717601755143,0.3827698,174.95,174.93,90.26863434]
[1717601755322,0.3827698,174.95,174.93,2.1151]
[1717601756008,7.4727698,174.95,174.93,2.1151]
[1717601756208,0.3827698,174.95,174.93,2.1151]
[1717601756404,7.49,174.94,174.93,90.26863434]
[1717601756629,7.49,174.94,174.86,6.3908]
[1717601756925,0.4,174.94,174.93,88.15353434]
[1717601757308,0.4,174.94,174.82,10.80410506]
[1717601757309,7.49,174.94,174.82,10.80410506]
[1717601757509,7.49,174.94,174.85,7.09]
[1717601757510,0.4,174.94,174.85,7.09]
[1717601757736,7.09,174.92,174.85,7.09]
[1717601757907,0.4,174.94,174.83,41.20542359]
[1717601758107,7.09,174.92,174.91,88.15353434]
[1717601758308,7.09,174.92,174.85,12.82]
[1717601758519,0.4,174.94,174.93,88.15353434]
[1717601758720,7.49,174.94,174.82,10.80410506]
[1717601758950,0.4,174.94,174.93,88.15353434]
[1717601759259,7.49,174.94,174.93,88.15353434]
[1717601759619,7.49,174.94,174.83,41.20542359]
[1717601759815,7.09,174.93,174.86,7.09]
[1717601760020,0.4,174.94,174.88,7.09]
[1717601760322,7.49,174.94,174.93,88.15353434]
[1717601761848,0.4,174.94,174.93,120.34]
[1717601762223,0.4,174.94,174.93,126.8084]
[1717601763125,0.4,174.94,174.93,132.5384]
[1717601764045,0.4,174.94,174.93,120.0]
[1717601764247,7.49,174.94,174.93,120.0]
[1717601765357,0.4,174.94,174.93,126.5185]
[1717601765535,0.4,174.94,174.93,126.64501744]
[1717601765851,0.4,174.94,174.93,120.0]
[1717601766053,0.4,174.94,174.93,126.5185]
[1717601766560,0.4,174.94,174.93,187.36528208]
[1717601767070,0.4,174.94,174.93,194.01225126]
[1717601767362,0.4,174.94,174.93,186.92225126]
[1717601767730,0.4,174.94,174.93,194.01225126]
[1717601768547,0.4,174.94,174.93,186.92225126]
[1717601768932,0.4,174.94,174.93,146.93225126]
[1717601769333,0.4,174.94,174.93,134.1925662]
[1717601770152,0.4,174.94,174.93,139.9225662]
[1717601770326,0.3827698,174.95,174.94,27.3692]
[1717601770526,44.9584497,175.07,175.06,120.0]
[1717601770730,52.0484497,175.07,175.06,120.0]
[1717601770925,68.3907497,175.07,175.06,120.0]
[1717601771146,81.6891497,175.07,175.06,120.0]
[1717601771438,67.5091497,175.07,175.06,120.0]
[1717601771761,44.9584497,175.07,175.06,120.0]
[1717601772251,52.0484497,175.07,175.06,120.0]
[1717601772435,44.9584497,175.07,175.06,120.0]
[1717601772642,52.0484497,175.07,175.06,120.0]
[1717601774051,44.9584497,175.07,175.06,120.0]
[1717601774456,52.0484497,175.07,175.06,120.0]
[1717601774672,52.0484497,175.07,174.99,7.53940149]
[1717601774839,7.09,175.0,174.95,6.92757685]
[1717601775037,7.09,174.98,174.94,6.1278]
[1717601775241,44.9584497,175.07,174.95,6.94664214]
[1717601775438,44.9584497,175.07,174.96,7.09]
[1717601775640,44.9584497,175.07,174.97,14.36886436]
[1717601775864,44.9584497,175.07,174.97,20.21574795]
[1717601776172,7.09,175.03,174.97,20.21574795]
[1717601776339,44.9584497,175.07,174.98,6.7284]
[1717601776536,7.09,175.03,174.98,6.7284]
[1717601776735,7.09,175.01,174.97,7.20688359]
[1717601777040,7.09,175.02,174.98,5.73]
[1717601777259,44.9584497,175.07,174.98,5.73]
[1717601777454,7.09,175.03,174.98,19.49528359]
[1717601777960,44.9584497,175.07,174.98,19.49528359]
[1717601778258,44.9584497,175.07,174.99,0.34]
[1717601778461,7.09,175.04,174.99,14.31700581]
[1717601778658,44.9584497,175.07,174.99,14.31700581]
[1717601778864,44.9584497,175.07,174.99,20.80973648]
[1717601779244,44.9584497,175.07,174.99,6.83273067]
[1717601779435,7.09,175.03,174.99,0.34]
[1717601779649,7.09,175.03,175.0,0.17]
[1717601779848,7.09,175.03,175.0,0.34]
[1717601780275,7.09,175.02,174.98,6.1283]
[1717601780435,7.09,175.02,174.96,5.73]
[1717601780842,44.9584497,175.07,174.97,5.73]
[1717601781053,7.09,175.02,174.94,54.37818403]
[1717601781253,7.09,175.02,174.95,6.46432965]
[1717601781469,7.09,175.02,174.96,7.00018092]
[1717601781656,7.09,175.01,174.97,0.34]
[1717601782043,7.09,175.0,174.9,6.3081]
[1717601782257,47.0719497,175.07,174.95,7.09]
[1717601782548,7.09,175.03,174.97,12.82]
[1717601782941,44.9584497,175.07,174.99,12.004]
[1717601783168,7.09,175.05,174.99,6.274]
[1717601783370,7.09,175.05,175.0,0.34]
[1717601783581,44.9584497,175.07,175.0,0.34]
[1717601783582,7.09,175.04,175.0,0.34]
[1717601783873,44.9584497,175.07,175.0,0.34]
[1717601784069,7.09,175.05,175.0,0.34]
[1717601784248,7.09,175.04,175.0,0.34]
[1717601784656,68.8775497,175.07,174.97,7.00018092]
[1717601784853,66.7641497,175.07,174.94,41.35]
[1717601785165,7.09,175.03,175.02,120.0]
[1717601785362,68.8775497,175.07,175.06,120.0]
[1717601785552,75.9675497,175.07,175.06,120.0]
[1717601785741,73.8541497,175.07,175.06,120.0]
[1717601785947,75.9675497,175.07,175.06,120.0]
[1717601786256,73.8541497,175.07,175.06,120.0]
[1717601787063,75.9675497,175.07,175.06,120.0]
[1717601787370,73.8541497,175.07,175.06,120.0]
[1717601788442,44.9584497,175.07,175.06,120.0]
[1717601788644,52.0484497,175.07,175.06,120.0]
[1717601789358,44.9584497,175.07,175.06,120.0]
[1717601789663,52.0484497,175.07,175.06,120.0]
[1717601789870,44.9584497,175.07,175.06,120.0]
[1717601791063,52.0484497,175.07,175.06,120.0]
[1717601792378,44.9584497,175.07,175.06,120.0]
[1717601792575,52.0484497,175.07,175.06,120.0]
[1717601792778,44.9584497,175.07,175.06,120.0]
[1717601792951,52.0484497,175.07,175.06,120.0]
[1717601794772,44.9584497,175.07,175.06,120.0]
[1717601794953,52.0484497,175.07,175.06,120.0]
[1717601795675,44.9584497,175.07,175.06,120.0]
[1717601796080,44.9584497,175.07,175.06,120.17]
[1717601796291,44.9584497,175.07,175.06,120.0]
[1717601796752,44.9584497,175.07,175.06,120.17]
[1717601797352,44.9584497,175.07,175.06,120.34]
[1717601800880,44.9584497,175.07,175.06,120.17]
[1717601801075,52.0484497,175.07,175.06,120.17]
[1717601801784,52.0484497,175.07,175.06,120.0]
[1717601802478,44.9584497,175.07,175.06,120.0]
[1717601802860,52.0484497,175.07,175.06,120.0]
[1717601805460,44.9584497,175.07,175.06,120.0]
[1717601805778,52.0484497,175.07,175.06,120.0]
[1717601806882,44.9584497,175.07,175.06,120.0]
[1717601807082,52.0484497,175.07,175.06,120.0]
[1717601809858,44.9584497,175.07,175.06,120.0]
[1717601810061,52.0484497,175.07,175.06,120.0]
[1717601810365,44.9584497,175.07,175.06,120.0]
[1717601810767,52.0484497,175.07,175.06,120.0]
[1717601810963,44.9584497,175.07,175.06,120.0]
[1717601811374,52.0484497,175.07,175.06,120.0]
[1717601812271,44.9584497,175.07,175.06,120.0]
[1717601812459,52.0484497,175.07,175.06,120.0]
[1717601813481,44.9584497,175.07,175.06,120.0]
[1717601814702,52.0484497,175.07,175.01,5.705]
[1717601814870,44.9584497,175.07,175.06,120.0]
[1717601815067,52.0484497,175.07,175.06,120.0]
[1717601816374,44.9584497,175.07,175.06,120.0]
[1717601816694,52.0484497,175.07,175.06,120.0]
[1717601816866,44.9584497,175.07,175.06,120.0]
[1717601818784,44.9584497,175.07,175.06,120.17]
[1717601819202,44.9584497,175.07,175.06,126.8088]
[1717601820272,44.9584497,175.07,175.06,126.4688]
[1717601820784,44.9584497,175.07,175.06,126.6388]
[1717601820988,52.0484497,175.07,175.06,120.0]
[1717601821293,44.9584497,175.07,175.06,120.0]
[1717601821470,52.0484497,175.07,175.06,120.0]
[1717601823780,44.9584497,175.07,175.06,120.0]
[1717601823981,52.0484497,175.07,175.06,120.0]
[1717601825992,65.7050497,175.07,175.06,120.0]
[1717601826191,18.1315,175.03,175.02,120.0]
[1717601826392,31.3897,175.03,175.02,120.0]
[1717601827489,31.3897,175.03,174.93,6.2537]
[1717601827490,24.2997,175.03,174.93,6.2537]
[1717601827705,7.09,174.95,174.93,6.2537]
[1717601827908,7.09,174.94,174.89,21.9302]
[1717601828119,7.09,174.94,174.88,4.64756476]
[1717601828120,7.09,174.93,174.9,6.2905]
[1717601828282,22.1858,175.03,174.88,10.35256476]
[1717601828283,7.09,174.91,174.88,5.705]
[1717601828484,7.09,174.89,174.82,6.567]
[1717601828689,7.09,174.85,174.76,16.919564]
[1717601829096,7.09,174.82,174.77,5.705]
[1717601829306,28.36,174.87,174.78,5.705]
[1717601829507,7.09,174.8,174.77,2.1169]
[1717601829694,7.09,174.8,174.76,2.1171]
[1717601829893,10.5777,174.9,174.77,2.117]
[1717601829894,21.21,174.86,174.77,2.117]
[1717601830106,21.21,174.86,174.73,5.705]
[1717601830311,25.4419,174.86,174.73,5.705]
[1717601830513,2.1165,174.82,174.73,7.8225]
[1717601830711,21.21,174.86,174.73,5.705]
[1717601830887,6.3462,174.91,174.78,2.1169]
[1717601831089,2.1159,174.87,174.78,2.1169]
[1717601831293,21.21,174.91,174.72,6.3046]
[1717601831621,2.1156,174.89,174.81,2.1165]
[1717601831827,2.1157,174.88,174.79,2.1167]
[1717601831994,2.1157,174.88,174.74,0.9947085]
[1717601831995,2.1159,174.86,174.77,2.1169]
[1717601832326,21.21,174.88,174.78,2.1169]
[1717601832618,2.116,174.86,174.72,6.3046]
[1717601832806,21.21,174.88,174.76,2.1171]
[1717601833009,2.1161,174.85,174.77,2.117]
[1717601833317,2.1164,174.83,174.74,2.1173]
[1717601833491,20.0,174.87,174.75,2.1172]
[1717601833685,2.1163,174.83,174.74,2.1174]
[1717601833920,2.1162,174.84,174.75,2.1172]
[1717601834089,2.1162,174.84,174.76,3.82986028]
[1717601834291,21.21,174.85,174.76,2.1171]
[1717601834515,37.7295,174.85,174.72,6.3046]
[1717601834823,2.1163,174.83,174.74,2.1174]
[1717601835120,2.1159,174.87,174.82,56.40654318]
[1717601835294,15.7359,174.88,174.72,6.3046]
[1717601835622,4.2317,174.87,174.81,56.40654318]
[1717601835800,15.7359,174.88,174.83,56.40654318]
[1717601836005,15.7359,174.87,174.84,56.40654318]
[1717601836309,22.1825,174.89,174.72,6.3046]
[1717601836490,21.21,174.92,174.73,0.34]
[1717601836691,22.4057,174.92,174.75,21.21]
[1717601836895,2.1155,174.9,174.76,20.34]
[1717601837088,25.4407,174.91,174.8,2.1166]
[1717601837412,25.4407,174.91,174.81,2.1165]
[1717601837413,26.0548,174.91,174.81,2.1165]
[1717601837615,2.1155,174.9,174.82,2.2864]
[1717601837938,2.1155,174.9,174.88,56.40654318]
[1717601838211,2.1155,174.9,174.82,2.1164]
[1717601838441,2.1155,174.9,174.88,56.40654318]
[1717601839091,2.1156,174.89,174.81,2.2865]
[1717601839421,4.2302,174.94,174.89,56.40654318]
[1717601839727,4.2302,174.94,174.81,0.17]
[1717601839728,2.1155,174.9,174.82,2.1164]
[1717601839890,2.1156,174.89,174.85,56.40654318]
[1717601840091,2.1156,174.89,174.86,56.40654318]
[1717601840388,4.2303,174.93,174.87,56.40654318]
[1717601840587,2.1157,174.89,174.81,2.1165]
[1717601840806,2.1154,174.9,174.82,2.1163]
[1717601841008,2.1154,174.9,174.87,56.40654318]
[1717601841203,6.0333,174.91,174.87,56.40654318]
[1717601841417,21.8241,174.9,174.87,56.40654318]
[1717601841619,2.1156,174.89,174.81,2.1165]
[1717601842107,2.1156,174.89,174.87,56.40654318]
[1717601842704,4.2307,174.91,174.87,56.40654318]
[1717601843016,2.1158,174.88,174.75,5.875]
[1717601843205,2.1158,174.88,174.87,56.40654318]
[1717601843614,2.1156,174.89,174.81,2.1165]
[1717601843826,2.1157,174.88,174.87,56.40654318]
[1717601844005,8.4597,174.95,174.88,56.40654318]
[1717601844206,8.4597,174.95,174.81,2.1165]
[1717601844207,2.1156,174.89,174.81,2.1165]
[1717601844517,21.8241,174.9,174.87,56.40654318]
[1717601844763,2.1156,174.89,174.82,2.1164]
[1717601844906,2.1156,174.89,174.81,2.1165]
[1717601845240,2.1156,174.89,174.87,56.40654318]
[1717601845518,2.1157,174.88,174.87,56.40654318]
[1717601845704,2.1157,174.89,174.81,2.1165]
[1717601846324,2.1157,174.88,174.81,2.1165]
[1717601846532,21.746,174.9,174.87,56.40654318]
[1717601846831,21.746,174.9,174.83,56.40654318]
[1717601846832,2.116,174.86,174.83,56.40654318]
[1717601846993,2.116,174.86,174.76,0.17]
[1717601847193,21.746,174.9,174.86,120.0]
[1717601847407,2.1158,174.88,174.84,120.0]
[1717601847721,2.1158,174.88,174.87,120.0]
[1717601848120,2.1156,174.89,174.87,120.0]
[1717601848419,32.3224,174.92,174.87,120.0]
[1717601848420,2.1157,174.88,174.87,120.0]
[1717601848634,2.1156,174.89,174.87,120.0]
[1717601848810,21.746,174.93,174.89,120.0]
[1717601849012,2.1154,174.9,174.89,120.0]
[1717601849212,2.1153,174.92,174.89,120.0]
[1717601849411,2.1152,174.92,174.91,120.0]
[1717601849628,2.1151,174.93,174.91,120.0]
[1717601850230,2.115,174.94,174.91,120.0]
[1717601850438,6.3243,175.01,174.95,120.0]
[1717601850606,2.1148,174.96,174.95,120.0]
[1717601850807,2.1146,174.97,174.95,120.0]
[1717601851429,2.1147,174.96,174.95,120.0]
[1717601851637,2.1146,174.97,174.95,120.0]
[1717601852129,28.5597,175.02,174.95,120.0]
[1717601852320,2.1145,174.98,174.97,120.0]
[1717601853222,2.1146,174.97,174.95,120.0]
[1717601853410,2.1145,174.98,174.95,120.0]
[1717601854014,2.1146,174.97,174.95,120.0]
[1717601854954,2.1145,174.98,174.95,120.0]
[1717601855232,16.0291,175.02,174.97,120.0]
[1717601855408,2.1142,175.0,174.97,120.0]
[1717601856042,2.1142,175.01,174.97,120.0]
[1717601856220,2.1143,175.0,174.97,120.0]
[1717601857140,2.1142,175.01,174.97,120.0]
[1717601857537,22.78,175.04,174.99,120.0]
[1717601857714,2.1141,175.02,174.99,120.0]
[1717601857929,2.1141,175.01,174.99,120.0]
[1717601858539,21.21,175.03,174.97,120.0]
[1717601858709,6.3549,174.99,174.97,120.0]
[1717601858912,2.1145,174.98,174.97,120.0]
[1717601859436,8.4693,174.99,174.97,120.0]
[1717601859634,2.1145,174.98,174.97,120.0]
[1717601860131,2.1144,174.99,174.97,120.0]
[1717601860335,2.1143,175.0,174.97,120.0]
[1717601860539,2.1143,175.0,174.99,120.0]
[1717601860841,2.1143,175.0,174.97,120.0]
[1717601861042,10.5703,175.02,174.97,120.0]
[1717601861243,22.7977,175.01,174.97,120.0]
[1717601861934,2.1145,174.98,174.88,5.705]
[1717601862129,2.1146,174.97,174.89,0.34]
[1717601862326,2.1145,174.98,174.89,0.34]
[1717601862531,2.1145,174.98,174.88,0.34]
[1717601863041,44.0077,175.01,174.87,6.2884]
[1717601863233,2.1146,174.97,174.87,6.2884]
[1717601863431,20.0,175.0,174.87,6.2884]
[1717601863741,2.1146,174.97,174.87,6.2884]
[1717601863925,2.1147,174.96,174.87,6.2884]
[1717601864122,2.1147,174.97,174.87,6.2884]
[1717601864526,2.1146,174.97,174.87,6.2884]
[1717601864830,2.1147,174.97,174.88,0.34]
[1717601865219,2.1147,174.96,174.88,2.1157]
[1717601865445,2.1148,174.95,174.88,2.1157]
[1717601866140,4.2288,174.99,174.89,2.1155]
[1717601866319,2.1148,174.96,174.87,6.2884]
[1717601866523,2.1148,174.96,174.89,2.1155]
[1717601866726,2.1149,174.95,174.88,2.1156]
[1717601867264,2.1148,174.96,174.89,2.1156]
[1717601867952,22.7977,175.01,174.87,6.4584]
[1717601868243,2.1148,174.96,174.88,0.17]
[1717601868438,2.1148,174.96,174.88,2.4557]
[1717601868632,2.1146,174.97,174.89,2.2855]
[1717601868949,4.2288,174.99,174.91,8.4676]
[1717601868950,2.1144,174.99,174.91,8.4676]
[1717601869150,2.1145,174.98,174.91,6.3523]
[1717601869828,2.1146,174.97,174.91,6.3523]
[1717601870149,2.1146,174.98,174.91,6.3523]
[1717601870329,2.1143,175.0,174.91,6.3523]
[1717601870526,4.2279,175.03,174.92,0.34]
[1717601870836,2.1143,175.0,174.92,0.34]
[1717601871342,2.1144,174.99,174.92,0.17]
[1717601871545,2.1144,174.99,174.91,6.3523]
[1717601871546,2.1145,174.99,174.91,6.3523]
[1717601872133,15.0338,175.01,174.86,6.2672]
[1717601872339,2.1146,174.97,174.86,6.2672]
[1717601872647,2.1146,174.97,174.86,11.9722]
[1717601872950,2.1147,174.97,174.86,6.2672]
[1717601873245,2.1144,174.99,174.96,112.97641287]
[1717601873449,4.2286,175.0,174.9,2.1154]
[1717601873650,4.2286,175.0,174.96,112.97641287]
[1717601873854,4.2286,175.0,174.9,2.1154]
[1717601874023,10.3935,175.0,174.96,112.97641287]
[1717601874223,2.1146,174.98,174.91,2.1153]
[1717601874548,2.1146,174.97,174.89,0.34]
[1717601874849,4.2289,174.99,174.93,112.97641287]
[1717601875067,2.1147,174.97,174.86,6.2672]
[1717601875236,4.2291,174.98,174.86,6.2672]
[1717601875557,2.1148,174.96,174.86,6.2672]
[1717601875765,4.2291,174.98,174.86,6.2672]
[1717601875925,2.1148,174.96,174.94,112.97641287]
[1717601876125,2.1148,174.96,174.86,6.2672]
[1717601876328,2.1148,174.96,174.87,0.34]
[1717601876530,2.1148,174.96,174.95,112.97641287]
[1717601876743,2.1148,174.96,174.94,112.97641287]
[1717601876943,2.1148,174.95,174.94,112.97641287]
[1717601877250,2.1148,174.96,174.87,0.34]
[1717601877654,2.1148,174.96,174.94,112.97641287]
[1717601878525,15.8729,175.01,174.98,112.97641287]
[1717601878729,2.1144,174.99,174.98,112.97641287]
[1717601878928,2.1144,174.99,174.87,0.34]
[1717601879150,2.1145,174.98,174.87,0.34]
[1717601879351,2.1144,174.99,174.87,0.34]
[1717601879565,2.1145,174.98,174.87,0.34]
[1717601879736,2.1145,174.98,174.95,112.97641287]
[1717601880249,2.1145,174.98,174.87,0.34]
[1717601880442,2.1144,174.99,174.87,0.34]
[1717601880626,2.1142,175.01,174.97,112.97641287]
[1717601880957,2.1142,175.0,174.87,0.34]
[1717601881170,2.1142,175.0,174.98,112.97641287]
[1717601881763,2.1142,175.0,174.87,0.34]
[1717601881928,2.1142,175.0,174.98,112.97641287]
[1717601882129,2.1144,174.99,174.87,0.34]
[1717601882328,6.1454,175.01,174.87,0.34]
[1717601882547,2.1142,175.0,174.87,0.34]
[1717601882748,2.1144,174.99,174.98,112.97641287]
[1717601882949,2.1144,174.99,174.96,112.97641287]
[1717601883250,2.1143,175.0,174.93,2.1151]
[1717601883556,2.1147,174.97,174.9,2.1154]
[1717601884060,2.1147,174.97,174.94,112.97641287]
[1717601884539,2.1146,174.97,174.96,112.97641287]
[1717601884854,2.1146,174.97,174.94,112.97641287]
[1717601885153,19.0288,175.0,174.9,2.1154]
[1717601885452,2.1146,174.97,174.9,2.1154]
[1717601885648,2.1146,174.97,174.94,86.24132528]
[1717601886071,2.1146,174.97,174.95,86.24132528]
[1717601886365,15.5817,174.99,174.96,86.24132528]
[1717601886562,17.6961,174.99,174.92,2.1151]
[1717601886736,17.6961,174.99,174.96,86.24132528]
[1717601886939,4.2286,175.0,174.96,86.24132528]
[1717601887137,2.1146,174.97,174.95,86.24132528]
[1717601887457,2.1146,174.97,174.94,86.24132528]
[1717601887658,2.1146,174.97,174.9,2.1154]
[1717601887858,2.1146,174.97,174.94,86.24132528]
[1717601888070,4.2291,174.98,174.87,0.17]
[1717601888236,2.1148,174.96,174.89,2.1155]
[1717601888439,2.1147,174.97,174.9,2.1154]
[1717601888738,2.1147,174.96,174.89,2.1155]
[1717601889359,2.1147,174.96,174.87,6.045]
[1717601889360,2.1145,174.98,174.91,2.1152]
[1717601889957,7.06,174.97,174.91,2.1152]
[1717601890166,4.2284,175.01,174.97,86.24132528]
[1717601890338,7.06,174.98,174.96,86.24132528]
[1717601890532,7.06,174.97,174.96,86.24132528]
[1717601890780,9.1747,174.97,174.9,7.23]
[1717601891054,7.06,174.97,174.95,86.24132528]
[1717601891268,7.06,174.97,174.91,2.1153]
[1717601891957,7.06,174.97,174.96,86.24132528]
[1717601892556,7.06,174.97,174.91,2.1153]
[1717601892557,2.1144,174.99,174.92,2.1151]
[1717601892754,9.1744,174.99,174.98,86.24132528]
[1717601893366,9.1744,174.99,174.92,9.1751]
[1717601893539,9.1744,174.99,174.98,86.24132528]
[1717601894042,9.1744,174.99,174.97,86.24132528]
[1717601894378,9.1745,174.98,174.97,86.24132528]
[1717601894664,2.1144,174.99,174.98,86.24132528]
[1717601894965,7.06,174.99,174.98,86.24132528]
[1717601895264,7.06,174.99,174.93,2.115]
[1717601895470,9.1744,174.99,174.98,86.24132528]
[1717601895942,7.06,174.99,174.93,2.1151]
[1717601896352,24.6943,175.02,174.95,2.1148]
[1717601896567,8.4543,175.06,174.9,0.17]
[1717601896568,8.4543,175.06,174.96,7.06]
[1717601896761,8.4543,175.06,175.0,86.24132528]
[1717601896762,32.7034,175.06,175.0,86.24132528]
[1717601896965,7.06,175.03,175.0,86.24132528]
[1717601897152,7.06,175.01,174.99,86.24132528]
[1717601897669,7.06,175.0,174.98,86.24132528]
[1717601897843,7.06,174.99,174.92,7.06]
[1717601898443,7.06,174.99,174.89,26.4302]
[1717601898649,7.06,174.99,174.93,7.06]
[1717601899263,7.06,175.0,174.93,7.06]
[1717601899769,22.6924,175.04,174.94,7.06]
[1717601899770,7.06,175.01,174.94,7.06]
[1717601899947,7.06,175.0,174.93,7.06]
[1717601900148,7.06,175.0,174.92,0.17]
[1717601900363,7.06,174.98,174.91,7.06]
[1717601900675,7.06,174.97,174.9,7.06]
[1717601901056,22.6924,175.04,174.92,7.06]
[1717601901263,7.06,175.0,174.93,7.06]
[1717601901792,7.06,174.98,174.89,6.4302]
[1717601901987,7.06,174.97,174.89,6.4302]